fUSD/lending_fUSD_20240409
["ID","MTS","AMOUNT","RATE_DAILY","PERIOD"]
[322027819,1712695860637,-500.0,0.00025205,2]
[322027820,1712695860648,-2027.77,0.00025205,2]
[322027821,1712695860659,-267.25,0.00025225,2]
[322027822,1712695860669,-161.80028232,0.00025237,2]
[322027823,1712695860679,-475.39,0.00025241,2]
[322027824,1712695860690,-406.52370346,0.00025243,2]
[322027825,1712695860701,-1458.78,0.0002526,2]
[322027826,1712695860711,-635.39,0.0002526,2]
[322027827,1712695860722,-162.17363737,0.0002526,2]
[322027828,1712695860732,-539.48,0.0002526,2]
[322027829,1712695860743,-704.24,0.0002526,2]
[322027830,1712695860753,-3092.81,0.0002526,2]
[322027831,1712695860763,-500.0,0.00025261,2]
[322027832,1712695860774,-976.18,0.00025261,2]
[322027833,1712695860784,-705.31,0.00025261,2]
[322027834,1712695860795,-626.04,0.00025261,2]
[322027835,1712695860806,-584.0,0.00025261,2]
[322027836,1712695860816,-406.52370346,0.0002531,2]
[322027837,1712695860827,-215.51508606,0.00025359,2]
[322027838,1712695860838,-150.48143878,0.00025365,2]
[322027839,1712695860848,-150.48143878,0.00025372,2]
[322027840,1712695860859,-551.18,0.00025378,2]
[322027841,1712695860869,-152.60725601,0.00025387,2]
[322027842,1712695860879,-199.1064037,0.00025412,2]
[322027843,1712695860890,-1425.56,0.00025436,2]
[322027844,1712695860900,-599.82,0.00025436,2]
[322027845,1712695860911,-372.22633245,0.00025436,2]
[322027846,1712695860921,-890.45,0.00025436,2]
[322027847,1712695860931,-500.0,0.00025436,2]
[322027848,1712695860941,-1296.44,0.00025436,2]
[322027849,1712695860951,-978.0,0.00025452,2]
[322027850,1712695860961,-161.80028232,0.00025469,2]
[322027851,1712695860971,-2528.95,0.00025478,2]
[322027852,1712695860981,-500.0,0.00025478,2]
[322027853,1712695860990,-500.0,0.00025478,2]
[322027854,1712695861001,-746.05,0.00025478,2]
[322027856,1712695861010,-544.0,0.00025479,2]
[322027857,1712695861021,-533.0,0.00025479,2]
[322027858,1712695861033,-613.41,0.00025479,2]
[322027859,1712695861044,-684.32,0.00025479,2]
[322027860,1712695861055,-2433.52,0.00025479,2]
[322027861,1712695861065,-500.0,0.00025479,2]
[322027862,1712695861080,-2027.77,0.00025479,2]
[322027863,1712695861090,-156.43256608,0.00025503,2]
[322027864,1712695861100,-150.48143878,0.00025532,2]
[322027865,1712695861110,-1458.78,0.00025534,2]
[322027866,1712695861120,-635.39,0.00025534,2]
[322027867,1712695861130,-539.48,0.00025534,2]
[322027868,1712695861140,-704.24,0.00025534,2]
[322027869,1712695861151,-3092.81,0.00025534,2]
[322027870,1712695861161,-347.54118448,0.00025535,2]
[322027871,1712695861171,-976.18,0.00025535,2]
[322027872,1712695861182,-705.31,0.00025535,2]
[322027873,1712695861192,-626.04,0.00025535,2]
[322027874,1712695861202,-584.0,0.00025535,2]
[322027875,1712695861212,-210.0,0.0002556,2]
[322027876,1712695861223,-152.0,0.00025592,9]
[322027877,1712695861234,-831.14,0.000256,2]
[322027878,1712695861244,-1194.64,0.000256,2]
[322027879,1712695861254,-153.40766547,0.00025628,2]
[322027880,1712695861265,-551.18,0.00025652,2]
[322027881,1712695861276,-152.60725601,0.00025689,2]
[322027882,1712695861289,-406.52370346,0.00025694,2]
[322027883,1712695861299,-215.51508606,0.00025705,2]
[322027884,1712695861310,-153.70464839,0.00025707,2]
[322027885,1712695861320,-1425.56,0.0002571,2]
[322027886,1712695861329,-599.82,0.0002571,2]
[322027887,1712695861340,-890.45,0.0002571,2]
[322027888,1712695861354,-302.52544293,0.0002571,2]
[322027889,1712695861365,-1296.44,0.0002571,2]
[322027890,1712695861376,-914.32635425,0.00025718,2]
[322027891,1712695861386,-2528.95,0.00025752,2]
[322027892,1712695861398,-158.78351537,0.00025752,2]
[322027893,1712695861409,-500.0,0.00025752,2]
[322027894,1712695861419,-746.05,0.00025752,2]
[322027895,1712695861430,-613.41,0.00025753,2]
[322027896,1712695861440,-684.32,0.00025753,2]
[322027897,1712695861450,-2433.52,0.00025753,2]
[322027898,1712695861460,-500.0,0.00025753,2]
[322027899,1712695861471,-2027.77,0.00025753,2]
[322027900,1712695861482,-215.51508606,0.00025767,2]
[322027901,1712695861493,-483.80714325,0.00025801,2]
[322027902,1712695861504,-1458.78,0.00025808,2]
[322027903,1712695861516,-635.39,0.00025808,2]
[322027904,1712695861528,-539.48,0.00025808,2]
[322027905,1712695861541,-704.24,0.00025808,2]
[322027906,1712695861552,-3092.81,0.00025808,2]
[322027907,1712695861563,-976.18,0.00025809,2]
[322027908,1712695861574,-705.31,0.00025809,2]
[322027909,1712695861585,-626.04,0.00025809,2]
[322027910,1712695861599,-584.0,0.00025809,2]
[322027911,1712695861609,-199.1064037,0.00025819,2]
[322027912,1712695861619,-157.86201344,0.00025819,2]
[322027913,1712695861629,-483.80714325,0.00025825,2]
[322027914,1712695861639,-153.63846238,0.00025845,2]
[322027915,1712695861651,-157.86201344,0.00025859,2]
[322027916,1712695861661,-341.69192811,0.0002589,2]
[322027917,1712695861672,-158.7931734,0.00025891,2]
[322027918,1712695861683,-495.22095793,0.00025893,2]
[322027919,1712695861694,-153.63846238,0.00025897,2]
[322027920,1712695861704,-551.18,0.00025926,2]
[322027921,1712695861715,-150.48143878,0.00025932,2]
[322027922,1712695861726,-150.48143878,0.00025963,2]
[322027923,1712695861737,-1425.79088495,0.00025984,2]
[322027924,1712695861747,-599.87108899,0.00025984,2]
[322027925,1712695861758,-890.49054944,0.00025984,2]
[322027926,1712695861768,-1296.54249488,0.00025984,2]
[322027927,1712695861779,-205.42377238,0.0002599,7]
[322027928,1712695861789,-914.32635425,0.00025991,2]
[322027929,1712695861800,-63534.14710786,0.00025997,2]
[322027930,1712695861810,-36549.62728245,0.00025997,2]
[322027931,1712695861821,-669.19,0.00026,2]
[322027932,1712695861830,-275703.74427887,0.00026,2]
[322027933,1712695861840,-10999.999997,0.00026,2]
[322027934,1712695861851,-150.0,0.00026,2]
[322027935,1712695861860,-1000.0,0.00026,2]
[322027936,1712695861870,-1764.0,0.00026,2]
[322027937,1712695861880,-10506.64,0.00026,2]
[322027938,1712695861890,-150.0,0.00026,2]
[322027939,1712695861899,-500000.0,0.00026,2]
[322027940,1712695861909,-300.0,0.00026,2]
[322027941,1712695861919,-153.83304041,0.00026003,2]
[322027942,1712695861929,-157.93288149,0.00026007,2]
[322027943,1712695861940,-2528.98845072,0.00026026,2]
[322027944,1712695861950,-153.70464839,0.00026026,2]
[322027945,1712695861960,-349.2378374,0.00026026,2]
[322027946,1712695861971,-746.22175235,0.00026026,2]
[322027947,1712695861981,-613.50787207,0.00026027,2]
[322027948,1712695861991,-684.47118025,0.00026027,2]
[322027949,1712695862001,-2433.62499316,0.00026027,2]
[322027950,1712695862012,-261.68775629,0.00026027,2]
[322027951,1712695862021,-2027.97351247,0.00026027,2]
[322027952,1712695862032,-914.32635425,0.0002603,2]
[322027953,1712695862042,-914.32635425,0.00026045,2]
[322027954,1712695862052,-199.1064037,0.00026071,2]
[322027955,1712695862062,-210.0,0.0002608,2]
[322027956,1712695862074,-1458.86,0.00026082,2]
[322027957,1712695862085,-635.44596279,0.00026082,2]
[322027958,1712695862096,-539.65357161,0.00026082,2]
[322027959,1712695862107,-704.35292606,0.00026082,2]
[322027960,1712695862117,-3092.86365208,0.00026082,2]
[322027961,1712695862126,-976.40322266,0.00026083,2]
[322027962,1712695862136,-705.4409453,0.00026083,2]
[322027963,1712695862147,-626.19992346,0.00026083,2]
[322027964,1712695862158,-584.23633563,0.00026083,2]
[322027965,1712695862168,-159.12795239,0.00026106,2]
[322027966,1712695862178,-152.0,0.00026118,10]
[322027967,1712695862189,-914.32635425,0.00026148,2]
[322027968,1712695862198,-153.83304041,0.00026173,2]
[322027969,1712695862209,-250.16267514,0.00026174,2]
[322027970,1712695862218,-551.18,0.000262,2]
[322027971,1712695862228,-250.16267514,0.00026204,2]
[322027972,1712695862238,-406.52370346,0.00026227,2]
[322027973,1712695862248,-153.63846238,0.00026229,2]
[322027974,1712695862257,-307.0,0.0002627,8]
[322027975,1712695862267,-870.4,0.00026297,2]
[322027976,1712695862277,-5811.88995949,0.000263,2]
[322027977,1712695862287,-2000.0,0.000263,3]
[322027978,1712695862297,-158.7931734,0.0002631,2]
[322027979,1712695862307,-159.12795241,0.00026312,2]
[322027980,1712695862317,-341.69192811,0.00026313,2]
[322027981,1712695862327,-495.22095793,0.00026315,2]
[322027982,1712695862337,-914.32635425,0.00026319,2]
[322027983,1712695862348,-153.70464839,0.00026345,2]
[322027984,1712695862358,-199.1064037,0.00026373,2]
[322027985,1712695862368,-153.83304041,0.00026402,2]
[322027986,1712695862380,-199.1064037,0.00026416,2]
[322027987,1712695862392,-406.52370346,0.00026419,2]
[322027988,1712695862403,-3120.3687487,0.00026459,2]
[322027989,1712695862413,-551.18,0.00026474,2]
[322027990,1712695862423,-1387.81,0.000265,2]
[322027991,1712695862433,-408.56,0.000265,2]
[322027992,1712695862443,-152.60725601,0.00026555,2]
[322027993,1712695862454,-199.1064037,0.00026601,2]
[322027994,1712695862464,-210.0,0.0002661,2]
[322027995,1712695862474,-417.82,0.0002662,2]
[322027996,1712695862484,-150.0,0.0002662,2]
[322027997,1712695862493,-162.23,0.0002662,2]
[322027998,1712695862503,-150.0,0.0002662,2]
[322027999,1712695862514,-162.23,0.0002662,2]
[322028000,1712695862525,-150.0,0.0002662,2]
[322028001,1712695862535,-150.0,0.0002662,2]
[322028002,1712695862545,-505.73,0.0002662,2]
[322028003,1712695862555,-150.0,0.0002662,2]
[322028004,1712695862566,-162.03,0.0002662,2]
[322028005,1712695862576,-150.0,0.0002662,2]
[322028006,1712695862586,-417.82,0.0002662,2]
[322028007,1712695862597,-150.0,0.0002662,2]
[322028008,1712695862608,-150.0,0.0002662,2]
[322028009,1712695862617,-834.07,0.0002662,2]
[322028010,1712695862628,-300.0,0.0002662,2]
[322028011,1712695862639,-341.69192811,0.0002663,2]
[322028012,1712695862650,-152.0,0.00026643,11]
[322028013,1712695862660,-978.0,0.00026685,2]
[322028014,1712695863020,-831.14,0.000267,2]
[322028015,1712695863038,-1194.64,0.000267,2]
[322028016,1712695863051,-538.0,0.00026712,2]
[322028017,1712695863060,-6922.45949902,0.0002673,2]
[322028018,1712695863278,-914.32635425,0.00026739,2]
[322028019,1712695863288,-341.69192811,0.00026747,2]
[322028020,1712695863297,-551.18,0.00026748,2]
[322028021,1712695863307,-974.98,0.000268,3]
[322028022,1712695863316,-199.1064037,0.00026816,2]
[322028023,1712695863326,-495.22095793,0.0002684,2]
[322028024,1712695863335,-341.69192811,0.00026873,2]
[322028025,1712695863346,-153.70464839,0.00026895,2]
[322028026,1712695863355,-215.51508606,0.00026953,2]
[322028027,1712695863364,-495.22095793,0.00026983,2]
[322028028,1712695863374,-914.32635425,0.00026997,2]
[322028029,1712695863384,-188.3420924,0.00027,4]
[322028030,1712695863393,-1724.94,0.00027,2]
[322028031,1712695863403,-1000.0,0.00027,2]
[322028032,1712695863412,-173346.65999767,0.00027,2]
[322028033,1712695863421,-150.0,0.00027,2]
[322028034,1712695863430,-32501.63789998,0.00027,10]
[322028035,1712695863439,-10953.54140502,0.00027,2]
[322028036,1712695863448,-95134.17748487,0.00027,2]
[322028037,1712695863457,-4500.98759999,0.00027,2]
[322028038,1712695863467,-169.19497887,0.00027,2]
[322028039,1712695863476,-20000.0,0.00027,7]
[322028040,1712695863485,-300.0,0.00027,2]
[322028041,1712695863495,-4717.42543633,0.00027,5]
[322028042,1712695863504,-154.583277,0.00027,7]
[322028043,1712695863515,-151.0,0.00027,7]
[322028044,1712695863525,-151.0,0.00027,7]
[322028045,1712695863536,-151.0,0.00027,7]
[322028046,1712695863545,-1450.0,0.00027,3]
[322028047,1712695863554,-495.22095793,0.00027009,2]
[322028048,1712695863565,-551.18,0.00027022,2]
[322028049,1712695863574,-199.1064037,0.00027026,2]
[322028050,1712695863584,-166.88782043,0.00027036,2]
[322028051,1712695863593,-495.22095793,0.00027044,2]
[322028052,1712695863603,-483.80714325,0.00027057,2]
[322028053,1712695863613,-406.52370346,0.00027063,2]
[322028054,1712695863622,-914.32635425,0.00027063,2]
[322028055,1712695863631,-483.80714325,0.00027065,2]
[322028056,1712695863640,-683.66,0.00027068,15]
[322028057,1712695863649,-199.1064037,0.00027072,2]
[322028058,1712695863658,-157.93288149,0.00027076,2]
[322028059,1712695863667,-985.66,0.000271,3]
[322028060,1712695863676,-341.69192811,0.00027107,2]
[322028061,1712695863686,-7110.82106295,0.00027111,3]
[322028062,1712695863695,-3425.39,0.00027123,2]
[322028063,1712695863704,-11018.34,0.00027123,2]
[322028064,1712695863714,-210.0,0.0002713,2]
[322028065,1712695863726,-156.43256608,0.00027149,2]
[322028066,1712695863737,-406.52370346,0.00027157,2]
[322028067,1712695863747,-162.0,0.00027166,2]
[322028068,1712695863757,-152.0,0.00027169,12]
[322028069,1712695863768,-176.53354985,0.00027195,2]
[322028070,1712695863778,-158.7931734,0.00027196,2]
[322028071,1712695863789,-153.40766547,0.00027204,2]
[322028072,1712695863798,-161.80028232,0.00027228,2]
[322028073,1712695863808,-551.18,0.00027296,2]
[322028074,1712695863818,-166.75619801,0.00027342,2]
[322028075,1712695863828,-161.80028232,0.00027351,2]
[322028076,1712695863838,-405.0,0.00027396,2]
[322028077,1712695863848,-405.63235844,0.00027396,2]
[322028078,1712695863857,-500.0,0.00027397,2]
[322028079,1712695863866,-500.0,0.00027397,2]
[322028080,1712695863876,-344.5906809,0.00027397,2]
[322028081,1712695863884,-500.0,0.00027397,2]
[322028082,1712695863894,-500.0,0.00027397,2]
[322028083,1712695863903,-500.0,0.00027397,2]
[322028084,1712695863912,-500.0,0.00027397,2]
[322028085,1712695863921,-500.0,0.00027397,2]
[322028086,1712695863930,-500.0,0.00027397,2]
[322028087,1712695863940,-500.0,0.00027397,2]
[322028088,1712695863949,-525.05795631,0.00027397,2]
[322028089,1712695863959,-165.30103303,0.00027397,2]
[322028090,1712695863968,-1000.0,0.00027397,2]
[322028091,1712695863978,-1000.0,0.00027397,2]
[322028092,1712695863987,-234.92577774,0.00027397,2]
[322028093,1712695863996,-1000.0,0.00027397,2]
[322028094,1712695864006,-711.57,0.00027397,2]
[322028095,1712695864015,-79742.61,0.00027397,2]
[322028096,1712695864024,-7638.95079,0.00027397,3]
[322028097,1712695864033,-15757.81,0.00027397,2]
[322028098,1712695864043,-624.21,0.00027397,2]
[322028099,1712695864053,-151.0,0.00027397,7]
[322028100,1712695864062,-151.0,0.00027397,7]
[322028101,1712695864072,-151.0,0.00027397,7]
[322028102,1712695864084,-151.0,0.00027397,7]
[322028103,1712695864096,-10663.74,0.00027397,10]
[322028104,1712695864106,-12529.34,0.00027397,10]
[322028105,1712695864116,-10441.11,0.00027397,10]
[322028106,1712695864125,-300.0,0.00027397,10]
[322028107,1712695864136,-300.0,0.00027397,10]
[322028108,1712695864145,-300.0,0.00027397,10]
[322028109,1712695864155,-300.0,0.00027397,10]
[322028110,1712695864165,-300.0,0.00027397,10]
[322028111,1712695864174,-300.0,0.00027397,10]
[322028112,1712695864183,-300.0,0.00027397,10]
[322028113,1712695864192,-300.0,0.00027397,10]
[322028114,1712695864201,-300.0,0.00027397,10]
[322028115,1712695864210,-300.0,0.00027397,10]
[322028116,1712695864219,-300.0,0.00027397,10]
[322028117,1712695864229,-300.0,0.00027397,10]
[322028118,1712695864238,-300.0,0.00027397,10]
[322028119,1712695864247,-300.0,0.00027397,10]
[322028120,1712695864256,-300.0,0.00027397,10]
[322028121,1712695864265,-300.0,0.00027397,10]
[322028122,1712695864274,-300.0,0.00027397,10]
[322028123,1712695864284,-300.0,0.00027397,10]
[322028124,1712695864293,-381.75811931,0.00027397,10]
[322028125,1712695864303,-300.0,0.00027397,10]
[322028126,1712695864312,-300.0,0.00027397,10]
[322028127,1712695864321,-300.0,0.00027397,10]
[322028128,1712695864330,-300.0,0.00027397,10]
[322028129,1712695864339,-300.0,0.00027397,10]
[322028130,1712695864351,-300.0,0.00027397,10]
[322028131,1712695864360,-300.0,0.00027397,10]
[322028132,1712695864370,-458.34716375,0.00027397,10]
[322028133,1712695864380,-300.0,0.00027397,10]
[322028134,1712695864390,-300.0,0.00027397,10]
[322028135,1712695864400,-300.0,0.00027397,10]
[322028136,1712695864410,-300.0,0.00027397,10]
[322028137,1712695864420,-300.0,0.00027397,10]
[322028138,1712695864430,-300.0,0.00027397,10]
[322028139,1712695864440,-300.0,0.00027397,10]
[322028140,1712695864450,-300.0,0.00027397,10]
[322028141,1712695864460,-300.0,0.00027397,10]
[322028142,1712695864469,-401.47783638,0.000274,2]
[322028143,1712695864479,-153.83304041,0.00027404,2]
[322028144,1712695864489,-215.51508606,0.00027411,2]
[322028145,1712695864498,-495.22095793,0.00027421,2]
[322028146,1712695864507,-341.69192811,0.00027435,2]
[322028147,1712695864518,-483.80714325,0.00027437,2]
[322028148,1712695864527,-30348.1640047,0.00027442,2]
[322028149,1712695864537,-159.940546,0.00027442,7]
[322028150,1712695864546,-151.0,0.00027442,7]
[322028151,1712695864556,-151.0,0.00027442,7]
[322028152,1712695864566,-232.000786,0.00027442,7]
[322028153,1712695864575,-151.0,0.00027442,7]
[322028154,1712695864584,-429.516437,0.00027442,7]
[322028155,1712695864595,-232.000786,0.00027442,7]
[322028156,1712695864604,-429.516437,0.00027442,7]
[322028157,1712695864613,-151.0,0.00027442,7]
[322028158,1712695864623,-151.0,0.00027442,2]
[322028159,1712695864633,-199.1064037,0.00027442,2]
[322028160,1712695864642,-151.0,0.00027442,7]
[322028161,1712695864651,-151.0,0.00027442,7]
[322028162,1712695864661,-151.0,0.00027442,7]
[322028163,1712695864671,-151.0,0.00027442,7]
[322028164,1712695864680,-151.0,0.00027442,7]
[322028165,1712695864690,-3000.0,0.00027463,7]
[322028166,1712695864699,-151.0,0.00027463,7]
[322028167,1712695864709,-151.0,0.00027463,7]
[322028168,1712695864718,-151.0,0.00027463,7]
[322028169,1712695864728,-151.0,0.00027463,7]
[322028170,1712695864737,-151.0,0.00027463,7]
[322028171,1712695864746,-151.0,0.00027463,7]
[322028172,1712695864755,-151.0,0.00027463,7]
[322028173,1712695864765,-151.0,0.00027463,7]
[322028174,1712695864774,-151.0,0.00027463,7]
[322028175,1712695864784,-267.25,0.00027488,2]
[322028176,1712695864793,-188.11777351,0.000275,2]
[322028177,1712695864803,-181.508761,0.000275,2]
[322028178,1712695864813,-158.7931734,0.00027508,2]
[322028179,1712695864823,-250.16267514,0.0002753,2]
[322028180,1712695864833,-199.1064037,0.00027531,2]
[322028181,1712695864842,-161.80028232,0.00027549,2]
[322028182,1712695864851,-551.18,0.0002757,2]
[322028183,1712695864861,-859.6,0.000276,3]
[322028184,1712695864870,-896.6,0.000276,4]
[322028185,1712695864881,-153.63846238,0.00027605,2]
[322028186,1712695864891,-153.83304041,0.00027639,2]
[322028187,1712695864902,-171.81181541,0.00027649,2]
[322028188,1712695864912,-210.0,0.0002765,2]
[322028189,1712695864922,-406.52370346,0.00027656,2]
[322028190,1712695864931,-500.0,0.00027671,2]
[322028191,1712695864942,-153.83304041,0.0002768,2]
[322028192,1712695864952,-164.63804956,0.00027685,2]
[322028193,1712695864963,-156.43256608,0.0002769,2]
[322028194,1712695864974,-152.0,0.00027695,13]
[322028195,1712695864984,-495.22095793,0.00027702,2]
[322028196,1712695864994,-406.52370346,0.00027727,2]
[322028197,1712695865004,-250.16267514,0.00027752,2]
[322028198,1712695865013,-150.48143878,0.00027759,2]
[322028199,1712695865023,-215.51508606,0.00027765,2]
[322028200,1712695865033,-341.69192811,0.00027771,2]
[322028201,1712695865042,-1061.0,0.000278,3]
[322028202,1712695865052,-2464.748155,0.000278,2]
[322028203,1712695865062,-831.14,0.000278,2]
[322028204,1712695865079,-1194.64,0.000278,2]
[322028205,1712695865089,-151.0,0.000278,7]
[322028206,1712695865100,-151.0,0.000278,7]
[322028207,1712695865110,-151.0,0.000278,7]
[322028208,1712695865119,-151.0,0.000278,7]
[322028209,1712695865129,-153.70464839,0.000278,2]
[322028210,1712695865138,-551.18,0.00027844,2]
[322028211,1712695865148,-363.41589448,0.00027874,2]
[322028212,1712695865157,-495.22095793,0.00027884,2]
[322028213,1712695865167,-965.63,0.000279,4]
[322028214,1712695865177,-157.86201344,0.00027903,2]
[322028215,1712695865186,-978.0,0.00027918,2]
[322028216,1712695865195,-341.69192811,0.00027943,2]
[322028217,1712695865205,-500.0,0.00027945,2]
[322028218,1712695865214,-215.51508606,0.00027986,2]
[322028219,1712695865224,-483.80714325,0.00027998,2]
[322028220,1712695865234,-300.0,0.00028,2]
[322028221,1712695865245,-7200.0,0.00028,2]
[322028222,1712695865254,-23800.0,0.00028,2]
[322028223,1712695865264,-289.0,0.00028,2]
[322028224,1712695865274,-20000.0,0.00028,3]
[322028225,1712695865284,-17152.0,0.00028,3]
[322028226,1712695865293,-172.5547787,0.00028,7]
[322028227,1712695865303,-220.766887,0.00028,7]
[322028228,1712695865313,-151.0,0.00028,7]
[322028229,1712695865322,-151.0,0.00028,7]
[322028230,1712695865332,-151.0,0.00028,7]
[322028231,1712695865341,-151.0,0.00028,7]
[322028232,1712695865352,-151.0,0.00028,7]
[322028233,1712695865361,-151.0,0.00028,7]
[322028234,1712695865371,-151.0,0.00028,7]
[322028235,1712695865380,-370.172463,0.00028,7]
[322028236,1712695865390,-200.392861,0.00028,7]
[322028237,1712695865400,-151.0,0.00028,7]
[322028238,1712695865409,-200.392861,0.00028,7]
[322028239,1712695865418,-370.172463,0.00028,7]
[322028240,1712695865428,-151.0,0.00028,7]
[322028241,1712695865438,-482.484988,0.00028,7]
[322028242,1712695865447,-482.484988,0.00028,7]
[322028243,1712695865456,-171.396988,0.00028,7]
[322028244,1712695865465,-171.396988,0.00028,7]
[322028245,1712695865474,-151.0,0.00028,7]
[322028246,1712695865484,-175.461544,0.00028,7]
[322028247,1712695865494,-212.31698,0.00028,7]
[322028248,1712695865503,-175.461544,0.00028,7]
[322028249,1712695865512,-357.142231,0.00028,7]
[322028250,1712695865522,-357.142231,0.00028,7]
[322028251,1712695865532,-151.0,0.00028,7]
[322028252,1712695865542,-151.0,0.00028,7]
[322028253,1712695865552,-151.0,0.00028,7]
[322028254,1712695865720,-158.863229,0.00028,7]
[322028255,1712695865730,-151.0,0.00028,7]
[322028256,1712695865740,-151.0,0.00028,7]
[322028257,1712695865750,-151.0,0.00028,7]
[322028258,1712695865759,-151.940829,0.00028,7]
[322028259,1712695865769,-151.0,0.00028,7]
[322028260,1712695865778,-165.049842,0.00028,7]
[322028261,1712695865788,-165.049842,0.00028,7]
[322028262,1712695865798,-150.0,0.00028,2]
[322028263,1712695865809,-152.693558,0.00028,7]
[322028264,1712695865819,-546.94484336,0.00028,2]
[322028265,1712695865830,-151.0,0.00028,7]
[322028266,1712695865840,-833.286233,0.00028,7]
[322028267,1712695865851,-833.286233,0.00028,7]
[322028268,1712695865862,-154.321723,0.00028,7]
[322028269,1712695865872,-151.0,0.00028,7]
[322028270,1712695865882,-151.0,0.00028,7]
[322028271,1712695865892,-215.158978,0.00028,7]
[322028272,1712695865907,-175.623016,0.00028,7]
[322028273,1712695865918,-215.158978,0.00028,7]
[322028274,1712695865928,-239.134938,0.00028,7]
[322028275,1712695865939,-172.777653,0.00028,7]
[322028276,1712695865949,-151.0,0.00028,7]
[322028277,1712695865960,-1914.000595,0.00028,7]
[322028278,1712695865970,-172.777653,0.00028,7]
[322028279,1712695865980,-151.0,0.00028,7]
[322028280,1712695865991,-1914.000595,0.00028,7]
[322028281,1712695866001,-151.0,0.00028,7]
[322028282,1712695866011,-171.978559,0.00028,7]
[322028283,1712695866021,-319.723781,0.00028,7]
[322028284,1712695866032,-319.723781,0.00028,7]
[322028285,1712695866042,-151.0,0.00028,7]
[322028286,1712695866052,-151.0,0.00028,7]
[322028287,1712695866063,-185.735795,0.00028,7]
[322028288,1712695866073,-185.735795,0.00028,7]
[322028289,1712695866085,-978.65,0.00028,5]
[322028290,1712695866095,-965.85,0.00028,5]
[322028291,1712695866105,-985.32,0.00028,5]
[322028292,1712695866114,-101117.79376004,0.00028,4]
[322028293,1712695866124,-5000.0,0.00028009,2]
[322028294,1712695866133,-914.32635425,0.00028012,2]
[322028295,1712695866143,-5000.0,0.00028025,2]
[322028296,1712695866153,-5000.0,0.00028032,2]
[322028297,1712695866163,-5000.0,0.00028033,2]
[322028298,1712695866173,-158.7931734,0.00028037,2]
[322028299,1712695866184,-152.60725601,0.00028048,2]
[322028300,1712695866193,-5000.0,0.00028049,2]
[322028301,1712695866202,-5000.0,0.00028055,2]
[322028302,1712695866212,-614.56,0.00028059,2]
[322028303,1712695866221,-5000.0,0.00028066,2]
[322028304,1712695866230,-5000.0,0.00028069,2]
[322028305,1712695866240,-5000.0,0.00028072,2]
[322028306,1712695866250,-5000.0,0.00028085,2]
[322028307,1712695866260,-823.42,0.000281,5]
[322028308,1712695866269,-4623.26,0.000281,2]
[322028309,1712695866279,-5000.0,0.00028102,2]
[322028310,1712695866290,-551.18,0.00028118,2]
[322028311,1712695866299,-161.80028232,0.00028118,2]
[322028312,1712695866309,-5000.0,0.00028122,2]
[322028313,1712695866319,-5000.0,0.0002813,2]
[322028314,1712695866329,-5000.0,0.00028151,2]
[322028315,1712695866338,-5000.0,0.0002816,2]
[322028316,1712695866349,-5000.0,0.00028161,2]
[322028317,1712695866359,-158.7931734,0.00028164,2]
[322028318,1712695866369,-150.48143878,0.00028166,2]
[322028319,1712695866380,-5000.0,0.00028169,2]